bitfinex/quotes_ETHUSD_20220120
["timestamp","ask_amount","ask_price","bid_price","bid_amount"]
[1642687511209,1.40495282,3190.7,3190.6,0.00341054]
[1642687511411,1.40495282,3190.7,3190.6,0.00244942]
[1642687513010,4.50495282,3190.7,3190.6,0.00244942]
[1642687513410,4.80495282,3190.7,3190.6,0.00244942]
[1642687514111,4.9686,3190.7,3190.6,0.00244942]
[1642687515358,4.6686,3190.7,3190.6,0.00244942]
[1642687516561,4.9686,3190.7,3190.6,0.00244942]
[1642687516964,6.2686,3190.7,3190.6,0.00244942]
[1642687518262,4.74376,3190.7,3190.6,0.00244942]
[1642687518462,6.79376,3190.7,3190.6,0.00244942]
[1642687518721,4.6936,3190.7,3190.6,0.00244942]
[1642687518911,4.66023069,3190.7,3190.6,0.00244942]
[1642687519515,3.28864718,3190.7,3190.6,0.00244942]
[1642687519713,3.26364718,3190.7,3190.6,0.00244942]
[1642687520614,3.21364718,3190.7,3190.6,0.00244942]
[1642687521319,3.21364718,3190.7,3190.6,2.672483]
[1642687521518,3.21364718,3190.7,3190.6,5.64638774]
[1642687521720,3.05,3190.7,3190.6,4.22101384]
[1642687523176,3.06276928,3190.7,3190.2,0.2492]
[1642687523378,0.04857659,3190.6,3190.5,0.00115505]
[1642687523575,3.06276928,3190.7,3190.5,0.00115505]
[1642687523576,3.05,3190.7,3190.5,0.00115505]
[1642687524377,3.05,3190.7,3190.6,1.49292966]
[1642687524579,3.05,3190.7,3190.6,1.49408471]
[1642687524780,3.05,3190.7,3190.6,3.04064683]
[1642687526210,0.0018186,3191.1,3190.6,3.19746679]
[1642687526414,0.0018186,3191.1,3190.6,3.98122679]
[1642687526615,0.00113685,3190.8,3190.7,0.03807109]
[1642687526815,0.00113685,3190.8,3190.7,0.00115498]
[1642687527116,0.00113685,3190.8,3190.7,0.15797498]
[1642687530357,0.00113685,3190.8,3190.7,0.00115498]
[1642687530558,0.00123105,3191.1,3190.7,0.00115498]
[1642687530960,0.00113685,3191.0,3190.7,0.00115498]
[1642687531362,0.00028343,3191.0,3190.7,0.00115498]
[1642687531563,0.00028343,3191.0,3190.8,0.00085342]
[1642687531764,0.00028343,3191.0,3190.9,3.20682]
[1642687531968,0.00028343,3191.0,3190.9,7.71843725]
[1642687532263,0.00028343,3191.0,3190.9,0.94165848]
[1642687533463,0.00028343,3191.0,3190.9,22.5217648]
[1642687533464,3.10028343,3191.0,3190.9,22.5217648]
[1642687533721,0.00123105,3191.1,3191.0,25.01353]
[1642687533919,0.21,3191.2,3191.0,29.62765568]
[1642687534120,0.21,3191.2,3191.1,4.00373991]
[1642687534320,0.0001,3191.2,3191.1,20.03315474]
[1642687534520,0.00123684,3191.2,3191.1,20.33315474]
[1642687534719,0.00113684,3191.2,3191.1,24.33685534]
[1642687534922,0.00113684,3191.2,3191.1,24.49367534]
[1642687535125,0.00565723,3192.0,3191.7,0.78349]
[1642687535323,0.00565723,3192.0,3191.7,1.96044467]
[1642687535522,0.00397897,3191.9,3191.8,4.3045633]
[1642687535823,0.00397897,3191.9,3191.8,4.30571797]
[1642687536422,0.00397897,3191.9,3191.8,1.53785627]
[1642687536822,0.00397897,3191.9,3191.8,1.53785625]
[1642687538762,0.00397897,3191.9,3191.8,2.6860762]
[1642687539771,0.00397897,3191.9,3191.8,1.53785625]
[1642687540871,0.00397897,3191.9,3191.8,6.08509315]
[1642687541071,0.00397897,3191.9,3191.8,8.10399315]
[1642687541313,0.00397897,3191.9,3191.8,24.44996565]
[1642687541713,0.00397897,3191.9,3191.8,22.07696622]
[1642687541912,0.00397897,3191.9,3191.8,21.92014622]
[1642687542312,0.00397897,3191.9,3191.8,3.49696622]
[1642687542715,0.00397897,3191.9,3191.8,4.77653385]
[1642687542916,3.10397897,3191.9,3191.8,4.77653385]
[1642687543916,0.00397897,3191.9,3191.8,4.77653385]
[1642687544416,0.00397897,3191.9,3191.8,7.44525893]
[1642687544615,0.00397897,3191.9,3191.8,7.72661614]
[1642687545062,0.00397897,3191.9,3191.8,26.30661614]
[1642687545264,0.00397897,3191.9,3191.8,28.97534038]
[1642687545663,0.00397897,3191.9,3191.8,27.30661614]
[1642687546064,0.00397897,3191.9,3191.8,7.72661614]
[1642687547069,0.00397897,3191.9,3191.8,6.94322614]
[1642687547268,0.00397897,3191.9,3191.8,6.79529338]
[1642687549121,0.00397897,3191.9,3191.8,1.02005462]
[1642687549320,0.00397897,3191.9,3191.8,0.00115462]
[1642687550320,0.00397897,3191.9,3191.8,1.20692824]
[1642687550831,0.12104852,3192.9,3191.9,0.78363]
[1642687551020,0.12104852,3192.9,3192.3,0.78353]
[1642687551021,0.00363665,3192.7,3192.3,0.78353]
[1642687551222,0.00363665,3192.8,3192.3,0.78468441]
[1642687551423,0.00363665,3192.8,3192.4,0.3]
[1642687551622,0.00875246,3192.8,3192.7,1.1331375]
[1642687551822,0.00875246,3192.8,3192.4,0.00115441]
[1642687551823,0.00511581,3192.8,3192.4,0.00115441]
[1642687552228,0.00454738,3192.7,3192.4,0.00115441]
[1642687552702,0.00397896,3192.6,3192.4,0.00115441]
[1642687553102,4.15341054,3192.5,3192.4,0.00115441]
[1642687553505,0.00341054,3192.5,3192.4,0.00115441]
[1642687554103,21.5106,3193.2,3192.4,3.13200137]
[1642687554104,10.0775,3193.2,3192.4,3.13200137]
[1642687554302,10.0775,3193.2,3192.5,0.0587127]
[1642687554303,0.00363638,3192.8,3192.5,0.0587127]
[1642687554504,0.00534165,3192.8,3192.5,0.05986711]
[1642687554702,0.00534165,3192.8,3192.7,1.34920583]
[1642687554903,0.00170527,3192.8,3192.7,1.34920583]
[1642687555102,0.00170527,3192.8,3192.7,1.64920583]
[1642687555304,0.00170527,3192.8,3192.7,0.3]
[1642687555502,0.00170527,3192.8,3192.6,0.7833673]
[1642687555706,0.00170527,3192.8,3192.5,0.00115441]
[1642687555904,0.00113684,3192.7,3192.5,0.00115439]
[1642687556324,13.44427994,3193.2,3192.5,0.00115439]
[1642687556325,3.80037488,3192.6,3192.5,0.00115439]
[1642687556724,1.20037488,3192.6,3192.5,0.00115439]
[1642687558731,0.00409182,3192.9,3192.5,0.00115439]
[1642687558928,0.00409182,3192.9,3192.5,0.78459499]
[1642687559529,0.00409182,3192.9,3192.7,0.03279221]
[1642687559729,0.00409182,3192.9,3192.7,1.5666891]
[1642687559965,0.00409182,3192.9,3192.7,1.4666891]
[1642687560366,1.38181087,3192.8,3192.6,1.56671]
[1642687560770,0.00113684,3192.7,3192.6,1.56671]
[1642687562573,0.00113684,3192.7,3192.5,1.56791439]
[1642687562975,0.00113684,3192.7,3192.5,2.35134349]
[1642687563476,0.00113684,3192.7,3192.5,2.35134347]
[1642687563740,0.54722409,3193.4,3192.5,3.74997424]
[1642687563933,0.00181813,3192.9,3192.8,1.54661888]
[1642687564132,0.00181813,3192.9,3192.5,3.74997424]
[1642687564133,0.00113685,3192.9,3192.7,0.00115437]
[1642687568467,0.00113685,3192.9,3192.7,1.56801407]
[1642687569272,4.3894049,3192.8,3192.7,0.00115437]
[1642687570875,6.7885061,3192.8,3192.7,0.00115437]
[1642687571922,3.25,3192.8,3192.7,0.00115437]
[1642687572422,0.00113685,3192.9,3192.7,0.00115437]
[1642687573323,0.00113685,3192.9,3192.8,1.23894967]
[1642687574523,0.00113685,3192.9,3192.8,1.53894967]
[1642687574723,0.00113685,3192.9,3192.8,1.23894967]
[1642687575569,0.00113685,3192.9,3192.7,0.00115437]
[1642687575769,0.00113685,3192.9,3192.7,0.00115435]
[1642687576874,0.00113685,3192.9,3192.8,1.56108352]
[1642687577072,0.00113685,3192.9,3192.8,1.56223787]
[1642687577672,2.45113685,3192.9,3192.8,0.00115435]
[1642687578713,4.80113685,3192.9,3192.8,0.00115435]
[1642687578917,2.45113685,3192.9,3192.8,0.00115435]
[1642687580721,3.6943025,3192.9,3192.8,0.00115435]
[1642687583269,2.45113685,3192.9,3192.8,0.00115435]
[1642687584573,5.40113685,3192.9,3192.8,0.00115435]
[1642687584970,6.85671955,3192.9,3192.8,0.00115435]
[1642687587020,6.90687955,3192.9,3192.8,0.00115435]
[1642687589423,6.85671955,3192.9,3192.8,0.00115435]
[1642687589828,5.40113685,3192.9,3192.8,0.00115435]
[1642687590279,2.45113685,3192.9,3192.8,0.00115435]
[1642687591080,2.45113685,3192.9,3192.8,0.00032625]
[1642687591483,0.00113685,3192.9,3192.8,0.00032625]
[1642687592283,0.00181808,3193.2,3192.8,0.00032625]
[1642687592488,0.00181808,3193.2,3192.9,0.78345]
[1642687592685,0.00113685,3193.1,3192.9,0.78345]
[1642687593285,0.00113685,3193.1,3192.8,0.00032625]
[1642687594118,0.79801418,3193.3,3192.8,0.00032625]
[1642687594319,0.79801418,3193.3,3192.9,1.40418378]
[1642687594518,0.79801418,3193.3,3193.0,0.00590694]
[1642687594720,0.79801418,3193.3,3193.0,0.78937694]
[1642687595317,0.69801418,3193.3,3193.0,0.78937694]
[1642687595918,0.69801418,3193.3,3193.1,1.48193442]
[1642687598264,3.75722207,3193.3,3193.0,0.00590694]
[1642687598466,5.70678457,3193.2,3192.9,1.47404379]
[1642687598669,5.66200213,3193.2,3192.9,1.47404379]
[1642687598868,0.01200213,3193.2,3192.9,1.47404379]
[1642687599471,0.01200213,3193.2,3193.0,1.26466907]
[1642687599670,0.69801418,3193.3,3193.0,1.26466907]
[1642687600072,0.69801418,3193.3,3193.0,1.16466907]
[1642687600276,0.69801418,3193.3,3193.0,1.94814277]
[1642687600974,0.69801418,3193.3,3193.0,2.73162277]
[1642687601421,0.69801418,3193.3,3193.0,1.94814907]
[1642687602317,0.69801418,3193.3,3193.0,0.78348]
[1642687602917,0.021,3193.2,3193.0,0.78348]
[1642687603316,1.57860794,3193.1,3192.3,3.1342317]
[1642687603518,3.06286526,3192.4,3191.3,0.00442618]
[1642687603717,3.06286526,3192.4,3191.5,2.66916701]
[1642687603718,0.04364263,3192.2,3191.5,2.66916701]
[1642687603916,3.06286526,3192.4,3191.5,2.66916701]
[1642687603917,0.021,3192.1,3191.5,2.66916701]
[1642687604116,1.15993085,3192.1,3191.6,0.0073895]
[1642687604516,1.15993085,3192.1,3191.7,1.16107946]
[1642687604717,0.021,3192.1,3191.7,1.94482656]
[1642687605005,0.021,3192.1,3191.8,0.00625266]
[1642687605605,0.021,3192.1,3191.9,1.17588738]
[1642687605804,16.37736,3192.7,3192.0,4.60751973]
[1642687605805,16.3482,3192.7,3192.0,4.60751973]
[1642687606002,16.3482,3192.7,3192.1,1.0835533]
[1642687606202,16.3482,3192.7,3192.1,0.78810069]
[1642687606405,16.3482,3192.7,3192.2,0.00397896]
[1642687606607,16.3482,3192.7,3192.5,1.14857568]
[1642687606806,9.8778,3192.7,3192.5,1.93224568]
[1642687607010,9.8778,3192.7,3192.6,0.00170527]
[1642687607405,11.04525582,3192.7,3192.6,0.00170527]
[1642687608815,9.8778,3192.7,3192.6,0.00170527]
[1642687609616,9.87687397,3192.7,3192.6,0.00170527]
[1642687610018,11.39179026,3192.7,3192.6,0.00170527]
[1642687610316,11.39179026,3192.7,3192.4,0.00284212]
[1642687610520,11.37079026,3192.7,3192.4,0.00284212]
[1642687610722,11.37079026,3192.7,3192.1,1.56739]
[1642687610723,11.37079026,3192.7,3192.3,0.78369]
[1642687611119,11.37079026,3192.7,3192.6,1.44912264]
[1642687611523,11.37079026,3192.7,3192.6,1.45082791]
[1642687611724,11.37079026,3192.7,3192.6,0.00170527]
[1642687612124,11.37079026,3192.7,3192.2,0.00397896]
[1642687612568,11.37079026,3192.7,3192.6,1.4338672]
[1642687612970,11.37079026,3192.7,3192.6,1.43557247]
[1642687614173,13.00603397,3192.7,3192.6,1.43557247]
[1642687614374,12.95587397,3192.7,3192.6,1.43557247]
[1642687621578,12.95587397,3192.7,3192.6,0.00170527]
[1642687621974,12.95587397,3192.7,3192.3,1.56714]
[1642687621975,12.95587397,3192.7,3192.4,0.00284212]
[1642687622775,12.95587397,3192.7,3192.5,1.3299284]
[1642687623175,12.95587397,3192.7,3192.6,0.00170527]
[1642687626720,0.02658934,3192.6,3192.2,0.00397896]
[1642687626920,12.95587397,3192.7,3192.2,0.00397896]
[1642687626921,1.35948524,3192.4,3192.2,0.00397896]
[1642687627569,1.35948524,3192.4,3192.2,1.49246]
[1642687628069,1.35948524,3192.4,3192.3,0.00341054]
[1642687628471,1.35676524,3192.4,3192.2,2.23124158]
[1642687628671,1.35676524,3192.4,3192.1,1.56731]
[1642687628871,1.35676524,3192.4,3191.6,6.7970781]
[1642687628872,1.35676524,3192.4,3191.6,6.0134]
[1642687629174,1.35676524,3192.4,3191.7,0.00341054]
[1642687629770,1.35676524,3192.4,3192.1,1.49533947]
[1642687630372,1.35676524,3192.4,3191.8,0.78379]
[1642687630572,1.35676524,3192.4,3191.7,0.00341054]
[1642687630573,0.016,3192.3,3191.7,0.00341054]
[1642687630770,0.016,3192.3,3191.9,0.00227369]
[1642687630974,0.016,3192.3,3191.6,0.78381]
[1642687631424,0.016,3192.3,3191.7,2.56624218]
[1642687631827,0.00723,3192.3,3191.8,0.00284212]
[1642687632824,12.93246331,3192.7,3192.2,1.16958669]
[1642687633026,12.93246331,3192.7,3192.3,3.04563127]
[1642687633027,3.1,3192.7,3192.3,3.04563127]
[1642687633225,0.0073877,3193.5,3192.7,0.10234968]
[1642687633226,0.00181808,3193.2,3192.7,0.10234968]
[1642687633424,0.0073877,3193.5,3192.6,0.25067144]
[1642687633625,0.0073877,3193.5,3192.7,0.3]
[1642687633626,0.00113685,3192.8,3192.7,0.3]
[1642687633824,0.00113685,3192.8,3192.7,1.62248355]
[1642687634025,0.00113685,3192.8,3192.7,3.00193443]
[1642687634225,0.00113685,3192.8,3192.7,6.28335481]
[1642687634427,0.00181808,3193.3,3192.7,4.08568443]
[1642687634825,0.0073877,3193.5,3192.9,2.05]
[1642687635079,0.00363599,3193.3,3193.0,2.01413219]
[1642687635276,0.0073877,3193.5,3193.0,2.01526904]
[1642687635277,0.00113685,3193.4,3193.0,2.01526904]
[1642687635477,0.00113685,3193.4,3193.1,0.3]
[1642687635677,0.00113685,3193.4,3193.2,1.17993906]
[1642687636083,0.00113685,3193.4,3193.2,1.47993906]
[1642687636484,0.00113685,3193.4,3193.2,1.17993906]
[1642687639823,0.00113685,3193.4,3193.2,1.47993906]
[1642687640021,0.00113685,3193.4,3193.2,1.77993906]
[1642687644070,0.0073877,3193.5,3193.2,1.77993906]
[1642687645177,0.0073877,3193.5,3193.3,2.349643]
[1642687646233,0.46583062,3194.5,3193.4,6.99577418]
[1642687646428,0.00363582,3193.9,3193.7,0.7830473]
[1642687646625,0.007,3194.8,3193.8,3.74577418]
[1642687647024,0.007,3194.8,3193.9,1.40674295]
[1642687647025,0.0073895,3194.7,3193.9,1.40674295]
[1642687647228,0.71864918,3194.7,3193.9,1.40674295]
[1642687647429,0.0104569,3194.6,3194.2,1.39712586]
[1642687647630,0.0104569,3194.6,3194.2,1.99712586]
[1642687647827,0.00625266,3194.5,3194.2,1.99712586]
[1642687648327,0.00363582,3194.6,3194.2,1.99712586]
[1642687648328,0.00486123,3194.4,3194.2,1.99712586]
[1642687648727,0.00429281,3194.3,3194.1,3.5866288]
[1642687648926,0.00429281,3194.3,3194.2,0.3]
[1642687649126,0.007,3194.8,3194.2,0.3]
[1642687649327,0.007,3194.8,3194.7,1.5365268]
[1642687649526,0.007,3194.8,3194.2,0.3]
[1642687649729,0.71827982,3194.8,3194.1,1.56603]
[1642687649971,0.01020171,3194.7,3194.1,1.56603]
[1642687650372,0.00599808,3194.6,3194.1,1.56603]
[1642687650770,0.00542966,3194.5,3194.1,1.56603]
[1642687650969,0.00542966,3194.5,3194.2,0.3]
[1642687651170,0.00486123,3194.4,3194.2,1.08295]
[1642687651578,0.007,3194.8,3194.3,1.33798141]
[1642687651972,0.0065665,3194.7,3194.3,1.33798141]
[1642687652373,0.00599808,3194.6,3194.4,0.3]
[1642687652874,0.00542966,3194.5,3194.4,0.3]
[1642687653472,0.00542966,3194.5,3194.3,2.42094561]
[1642687653759,0.007,3194.8,3194.3,2.42094561]
[1642687653760,0.00486123,3194.4,3194.3,2.42094561]
[1642687654151,0.007,3194.8,3194.3,2.42094561]
[1642687654551,0.00170527,3194.7,3194.3,2.42094561]
[1642687654851,0.00113685,3194.6,3194.3,2.42094561]
[1642687656252,0.00113685,3194.6,3194.3,1.63798141]
[1642687656454,0.00113685,3194.6,3194.3,1.33798141]
[1642687657466,0.00113685,3194.6,3194.3,2.12093911]
[1642687657667,0.00113685,3194.6,3194.4,0.04118576]
[1642687657870,0.00113685,3194.6,3194.3,2.12093911]
[1642687658272,0.00113685,3194.6,3194.3,2.42093911]
[1642687658470,0.00113685,3194.6,3194.3,0.7829577]
[1642687658673,0.00477217,3194.6,3193.9,1.5661101]
[1642687658872,0.01977217,3194.6,3193.6,1.56625]
[1642687659174,0.01977217,3194.6,3193.8,0.78316]
[1642687659572,0.01977217,3194.6,3193.9,0.00284211]
[1642687659573,0.01613685,3194.6,3193.9,0.00284211]
[1642687659971,0.01613685,3194.6,3193.9,0.30284211]
[1642687660272,0.01613685,3194.6,3194.0,0.00227369]
[1642687660673,0.00477217,3194.6,3194.0,0.00227369]
[1642687660874,0.00477217,3194.6,3194.1,1.25258732]
[1642687661073,0.00113685,3194.6,3194.1,2.33567732]
[1642687661323,0.00113685,3194.6,3194.3,0.04010279]
[1642687661528,0.00113685,3194.6,3194.2,4.409175]
[1642687662625,0.00113685,3194.6,3194.2,1.56712224]
[1642687663128,0.00113685,3194.6,3194.3,2.83559294]
[1642687663524,0.00113685,3194.6,3194.3,3.13559294]
[1642687663725,0.00113685,3194.6,3194.5,1.36146529]
[1642687664125,0.00113685,3194.6,3194.5,4.7269414]
[1642687664325,0.00113685,3194.6,3194.5,1.81828529]
[1642687664524,0.00113685,3194.6,3194.5,4.9876442]
[1642687664726,0.02996,3196.0,3195.0,0.09179257]
[1642687664972,0.02996,3196.0,3195.6,0.01268549]
[1642687665173,0.01585236,3196.5,3195.6,0.01268549]
[1642687665174,1.49774242,3196.4,3196.2,1.37007941]
[1642687665473,1.23828434,3196.9,3196.3,3.59123509]
[1642687665474,0.05,3196.9,3196.3,3.59123509]
[1642687665678,0.00439398,3198.1,3196.9,0.03968273]
[1642687665974,0.00439398,3198.1,3197.0,0.452]
[1642687666377,1.44544388,3197.7,3197.2,1.19082614]
[1642687666677,0.03,3198.3,3197.1,1.8644689]
[1642687666876,0.03,3198.3,3196.9,3.0832756]
[1642687667080,0.0170527,3197.6,3196.9,2.6460756]
[1642687667477,0.01648428,3197.5,3196.6,0.7824453]
[1642687667677,2.65003829,3197.4,3196.7,4.32730409]
[1642687667877,2.65003829,3197.4,3196.7,1.33834991]
[1642687667878,2.66595415,3197.4,3196.7,1.33834991]
[1642687668180,0.01534743,3197.3,3196.7,1.33834991]
[1642687668380,0.01534743,3197.3,3196.6,0.7824453]
[1642687668743,2.65003829,3197.4,3196.7,0.78586054]
[1642687668744,2.53428572,3197.4,3196.7,0.78586054]
[1642687668932,9.419,3197.3,3196.7,0.00341054]
[1642687669131,9.419,3197.3,3196.8,0.00284211]
[1642687669332,2.53428572,3197.4,3196.3,0.92071766]
[1642687669333,2.53428572,3197.4,3196.7,0.00341054]
[1642687669533,2.53428572,3197.4,3196.4,0.00511581]
[1642687669735,1.15135531,3196.8,3196.6,1.56477]
[1642687670135,1.15135531,3196.8,3196.7,0.00341054]
[1642687670634,8.5800884,3196.8,3196.7,1.054e-05]
[1642687670843,8.5800884,3196.8,3195.8,0.00598744]
[1642687670844,5.65,3196.7,3195.8,0.00598744]
[1642687671033,5.65,3196.7,3195.9,0.00454738]
[1642687671639,1.44231429,3196.1,3195.9,0.00454738]
[1642687671838,9.5352,3196.7,3195.9,0.00454738]
[1642687672038,0.78272,3196.6,3195.9,0.00454738]
[1642687672873,7.8787,3197.2,3195.9,0.00454738]
[1642687672874,1.19375962,3196.1,3195.9,0.00454738]
[1642687673073,1.19375962,3196.1,3195.7,1.7221287]
[1642687673074,1.19375962,3196.1,3195.7,1.52584352]
[1642687673276,1.19375962,3196.1,3195.7,1.82584352]
[1642687673478,1.27807287,3196.3,3195.7,1.82584352]
[1642687673775,1.27807287,3196.3,3195.7,1.52584352]
[1642687673776,0.00170527,3196.2,3195.7,1.52584352]
[1642687674176,0.00113684,3196.1,3195.7,1.52584352]
[1642687674379,1.12189872,3196.0,3195.7,1.52584352]
[1642687674577,1.12189872,3196.0,3195.3,3.5826433]
[1642687674779,1.12189872,3196.0,3195.4,0.3]
[1642687674980,1.12189872,3196.0,3195.4,0.00284212]
[1642687675580,1.12189872,3196.0,3194.9,3.15301565]
[1642687675581,1.12189872,3196.0,3195.3,0.00341055]
[1642687675779,0.05016,3196.1,3195.0,0.00511582]
[1642687676247,0.05129684,3196.1,3195.0,0.00511582]
[1642687676853,1.17683475,3195.1,3195.0,0.00511582]
[1642687677052,1.1908489,3195.4,3195.0,0.00511582]
[1642687677251,0.78294,3195.7,3195.0,0.00511582]
[1642687677252,0.00363482,3195.3,3195.0,0.00511582]
[1642687677654,0.00363482,3195.6,3195.0,0.00511582]
[1642687678053,1.42362489,3195.3,3195.0,0.00511582]
[1642687678252,1.19118163,3195.2,3195.0,0.00511582]
[1642687678455,1.19481645,3195.2,3195.0,0.00511582]
[1642687678756,0.00363482,3195.2,3194.9,0.78856424]
[1642687678953,0.00294407,3195.3,3194.9,0.78856424]
[1642687679252,0.00294407,3195.3,3195.0,0.30511582]
[1642687679453,0.00294407,3195.3,3195.0,0.00511582]
[1642687679655,0.00294407,3195.3,3195.2,1.52593639]
[1642687680070,0.00294407,3195.3,3195.2,1.82991536]
[1642687680273,0.00294407,3195.3,3195.2,1.52991536]
[1642687680571,0.00294407,3195.3,3195.2,0.00397897]
[1642687680871,0.00294407,3195.3,3195.1,0.00454739]
[1642687681474,0.00294407,3195.3,3195.1,1.38456658]
[1642687681678,0.00294407,3195.3,3195.1,0.00454739]
[1642687681877,0.00294407,3195.3,3195.2,0.00397897]
[1642687682076,0.00294407,3195.3,3195.0,0.00511582]
[1642687682378,6.14845426,3195.7,3194.9,0.00568424]
[1642687682577,1.17934053,3195.6,3195.2,1.44789139]
[1642687682775,2.32710507,3195.6,3194.9,0.00682108]
[1642687682974,2.32710507,3195.6,3194.8,1.0]
[1642687682975,2.32710507,3195.6,3195.3,0.00454739]
[1642687683176,2.32710507,3195.6,3194.9,0.00682108]
[1642687683376,0.783,3195.4,3194.9,0.00682108]
[1642687683720,0.00235155,3195.2,3194.9,0.00682108]
[1642687684024,5.65,3195.0,3194.8,2.108e-05]
[1642687684221,9.1320058,3194.9,3194.8,2.108e-05]
[1642687684426,5.65,3194.9,3194.8,2.108e-05]
[1642687684826,3.6,3194.8,3194.2,0.7361448]
[1642687685027,3.18750332,3194.7,3193.6,1.56641]
[1642687685227,3.18750332,3194.7,3193.9,1.40179373]
[1642687685427,3.18750332,3194.7,3193.6,1.56641]
[1642687685428,1.41354758,3194.3,3193.6,1.56641]
[1642687685627,0.87821658,3194.3,3194.0,0.00511581]
[1642687686828,2.08189213,3194.3,3194.0,0.00511581]
[1642687687474,2.08189213,3194.3,3193.7,0.00682108]
[1642687687669,2.08189213,3194.3,3193.8,0.7832]
[1642687688069,1.56652,3194.7,3193.9,0.00568423]
[1642687688271,3.6,3194.8,3194.0,1.56626]
[1642687688470,3.6,3194.8,3194.0,1.62012542]
[1642687688670,3.6,3194.8,3194.1,0.00454739]
[1642687688871,8.53323685,3195.1,3194.3,0.7830752]
[1642687689073,3.66513685,3195.1,3194.9,1.3834802]
[1642687689279,0.00113685,3195.1,3194.9,1.3834802]
[1642687689478,0.46863554,3195.8,3195.0,0.05326606]
[1642687689675,5.0243,3196.1,3195.0,3.09169862]
[1642687689880,1.65460235,3196.7,3195.1,0.15682]
[1642687689881,0.00113684,3195.3,3195.1,0.15682]
[1642687690077,8.44610235,3196.7,3195.5,0.78268]
[1642687690078,1.36172131,3195.6,3195.5,0.78268]
[1642687690276,16.23870235,3196.7,3195.5,4.12111256]
[1642687690277,0.00625266,3196.2,3195.5,4.12111256]
[1642687690578,1.39538788,3196.2,3195.6,1.5653486]
[1642687690777,13.13740235,3196.7,3195.7,3.03843256]
[1642687690981,0.01270116,3197.3,3195.7,3.03843256]
[1642687690982,1.2445,3197.7,3196.0,0.78241]
[1642687691226,1.2445,3197.7,3196.2,0.07998957]
[1642687691227,1.1003639,3197.2,3196.2,0.07998957]
[1642687691430,5.0808,3197.7,3196.3,3.0]
[1642687691633,5.54915264,3197.7,3196.4,3.03843256]
[1642687691832,4.55199476,3197.7,3196.4,1.80262001]
[1642687692028,0.00284211,3197.6,3196.9,0.78231]
[1642687692228,0.00284211,3197.6,3197.0,0.06193489]
[1642687692428,1.18799389,3197.5,3197.1,1.25117445]
[1642687692635,3.83137421,3198.7,3197.2,3.03843256]
[1642687692831,0.00284212,3198.0,3197.5,1.5642265]
[1642687693032,0.00284212,3198.0,3197.5,3.85770646]
[1642687693232,1.05013698,3198.9,3197.7,3.3]
[1642687693432,1.05013698,3198.9,3197.9,0.04470743]
[1642687693433,0.57142857,3198.9,3197.9,0.04470743]
[1642687693634,0.57142857,3198.9,3197.8,2.7478604]
[1642687693832,0.57142857,3198.9,3197.9,1.5639069]
[1642687694032,0.57142857,3198.9,3197.9,1.56561217]
[1642687694033,0.00341055,3198.8,3197.9,1.56561217]
[1642687694233,0.00341055,3198.8,3198.0,0.00113684]
[1642687694546,0.00284212,3198.7,3198.0,0.00113684]
[1642687694734,4.7402213,3198.1,3198.0,0.00113684]
[1642687694969,4.7402213,3198.1,3197.8,0.00227369]
[1642687694970,5.99508034,3198.1,3197.8,0.00227369]
[1642687695375,0.00363332,3198.0,3197.8,0.00227369]
[1642687695773,0.78245,3197.8,3196.8,0.00795792]
[1642687695977,5.99508034,3198.1,3197.1,0.7824426]
[1642687695978,1.13921213,3197.3,3197.1,0.7824426]
[1642687696175,1.13921213,3197.3,3197.0,1.56475]
[1642687696376,0.00363332,3197.2,3197.0,1.56475]
[1642687696575,0.00363332,3197.3,3197.0,1.56475]
[1642687697178,0.00363332,3197.3,3196.4,4.60340496]
[1642687697376,1.17377628,3197.2,3196.4,1.5649724]
[1642687697576,1.17377628,3197.2,3196.6,0.78257]
[1642687697577,0.00363332,3197.1,3196.6,0.78257]
[1642687697977,0.00363332,3197.1,3196.7,3.06164225]
[1642687698175,0.01294213,3198.0,3196.7,3.06164225]
[1642687698176,0.00363332,3197.3,3196.7,0.00852635]
[1642687698377,0.00363332,3198.0,3196.8,0.00795792]
[1642687698576,0.00363332,3198.0,3197.1,0.78241]
[1642687698833,0.00363332,3198.0,3196.8,1.56482]
[1642687699034,1.55274751,3197.9,3197.2,0.00568423]
[1642687699233,1.5651,3197.7,3196.9,0.0073895]
[1642687699433,1.5651,3197.7,3196.7,1.52980507]
[1642687699434,1.28552399,3197.2,3197.0,0.7824455]
[1642687699838,1.28552399,3197.2,3197.1,0.00625265]
[1642687700235,0.00363332,3197.2,3197.1,0.00625265]
[1642687700437,1.42805452,3197.3,3197.1,0.00625265]
[1642687700637,0.00363332,3197.2,3197.1,0.00625265]
[1642687700838,0.00363332,3197.8,3197.1,0.78869265]
[1642687701038,0.00363332,3197.2,3197.1,0.78869265]
[1642687701340,1.49341315,3197.8,3197.4,2.19547367]
[1642687701537,0.00363332,3197.8,3197.4,2.19547367]
[1642687701736,0.00363332,3197.8,3197.5,0.00397896]
[1642687701937,0.00363332,3197.8,3197.5,0.30397896]
[1642687701938,1.40275212,3197.7,3197.5,0.30397896]
[1642687702138,1.40275212,3197.7,3196.8,3.0531159]
[1642687702139,1.40275212,3197.7,3196.8,3.06107382]
[1642687702341,1.14507131,3197.2,3196.8,1.5648223]
[1642687702576,0.00363332,3197.7,3196.8,1.8648223]
[1642687702778,0.00363332,3197.1,3196.9,4.30783656]
[1642687702976,1.35058311,3197.5,3197.0,1.56472]
[1642687703177,0.00363332,3197.4,3197.0,1.87154108]
[1642687703377,0.00363332,3197.7,3197.0,1.87154108]
[1642687703577,1.31136713,3197.6,3197.0,1.87154108]
[1642687703779,0.00363332,3197.5,3197.0,1.87154108]
[1642687704983,0.00363332,3197.5,3197.1,0.7824065]
[1642687705182,0.00363332,3197.7,3197.2,1.5646078]
[1642687705384,0.00363332,3197.8,3197.5,1.19408477]
[1642687705581,0.00363332,3197.8,3197.5,0.3]
[1642687705782,0.00363332,3197.8,3197.6,0.00341054]
[1642687705988,0.9397,3197.8,3197.6,0.00341054]
[1642687706223,0.94333332,3197.8,3197.5,0.00397896]
[1642687706427,0.94333332,3197.8,3197.5,0.78626256]
[1642687706828,0.94333332,3197.8,3197.6,0.00341054]
[1642687707532,0.94333332,3197.8,3197.5,0.78234]
[1642687707829,0.94333332,3197.8,3197.6,0.00341054]
[1642687708229,0.94333332,3197.8,3197.3,1.08740581]
[1642687708429,0.94333332,3197.8,3197.4,0.00454738]
[1642687708430,3.90289181,3197.7,3197.4,0.00454738]
[1642687709629,0.00289181,3197.7,3197.5,0.06756534]
[1642687709831,0.00289181,3197.7,3197.5,0.84991534]
[1642687710079,0.00289181,3197.7,3197.6,0.78577134]
[1642687710276,0.00289181,3197.7,3197.6,1.08577134]
[1642687710277,5.10289181,3197.7,3197.6,1.08577134]
[1642687710478,5.6534,3197.6,3197.5,0.78235]
[1642687710679,5.6534,3197.6,3196.7,1.56504]